Workbook

Sheet Sheet1
A1: INSTRUCTIONS: Use this form when a single information collection document involves multiple reporting and recordkeeping requirements. The totals of the figures in cols. should be entered in item 13 of OMB-83-I: cols. (D) &/or (I) = 13a (respondent is only counted once); cols. F & I = 13b; cols. H & K = 13c. (F)Total/(D)Total = (E)Average (H)Total/(F)Total = (G)Average (K)Total/(I)Total = (J)Average NOTE: The columns will calculate automatically. If Col. E's response is something other than annually, i.e., 1/6 years, list as "1/6" & decimal will display. | I1: TITLE OF INFORMATION COLLECTION DOCUMENT | O1: OMB NO. | P1: 0560-0237
I3: FLP - Direct Loan Making
O4: DATE PREPARED
O5: 2025-07-17
A10: IDENTIFICATION OF REPORTING OR RECORDKEEPING REQUIREMENT | H10: ANNUAL BURDEN
H12: REPORTS | N12: RECORDS | Q12: RESPONDENT COST
L14: TOTAL BURDEN HOURS | P14: TOTAL
G15: FORMS NO (S) | H15: NO. OF | I15: NO OF | J15: TOTAL ANNUAL | K15: HOURS | L15: (Col. F x G) | N15: NO. OF | O15: ANNUAL | P15: RECORD- | Q15: COST | R15: TOTAL
A16: SECTION OF | B16: DESCRIPTION | G16: (If "none" | H16: RESPONDENTS | I16: RESPONSES | J16: RESPONSES | K16: PER | L16: (H) | N16: RECORD- | O16: HOURS PER | P16: KEEPING HOURS | Q16: PER | R16: COST
A17: REGS. | G17: so state) | I17: PER | J17: (Col. D x E) | K17: RESPONSE | N17: KEEPERS | O17: RECORD- | P17: (Col. I x J) | Q17: HOUR | R17: (Col. H x L)
I18: RESPONDENT | L18: EXEMPT | M18: NON-EXEMPT | O18: KEEPER
A19: (A) | B19: (B) | G19: (C) | H19: (D) | I19: (E) | J19: (F) | K19: (G) | N19: (I) | O19: (J) | P19: (K) | Q19: (L) | R19: (M)
A20: 764.51(b), 767.151 | B20: Request for loan making assistance/LM - Individuals and married applicants | G20: FSA-2001 | H20: 36119.78904 | I20: 0.751 | J20: =SUM(H20*I20) -> 27125.96157 | K20: =160/60 -> 2.666666667 | M20: =SUM(J20*K20) -> 72335.89752 | Q20: 118.1 | R20: =SUM(M20*Q20) -> 8542869.497 | S20: *
A21: 764.51(b), 767.151 | B21: Request for Direct Loan Assistance/LM - Entity | G21: FSA-2001 | H21: 8471.376211 | I21: 0.333 | J21: =SUM(H21*I21) -> 2820.968278 | K21: =190/60 -> 3.166666667 | M21: =SUM(J21*K21) -> 8933.066215 | Q21: 118.1 | R21: =SUM(M21*Q21) -> 1054995.12 | S21: *
A22: 765.403 (a)(1) | B22: Request for Direct Loan Assistance/transfer & assumption (ind.) | G22: FSA-2001 | H22: 1051.092922 | I22: 0.751 | J22: 789.3707841 | K22: =160/60 -> 2.666666667 | M22: 2104.988758 | Q22: 118.1 | R22: 248599.1723 | S22: *
A23: 765.403 (a)(1) | B23: Request for Direct Loan Assistance/transfer & assumption (ent) | G23: FSA-2001 | H23: 264.196704 | I23: 0.333 | J23: 87.97750243 | K23: =190/60 -> 3.166666667 | M23: 278.5954244 | Q23: 118.1 | R23: 32902.11962 | S23: *
A24: 766.102 (a)(2) | B24: Request for Direct Loan Assistance/PLS - individuals & married | G24: FSA-2001 | H24: 4954.826979 | I24: 0.751 | J24: 3721.075061 | K24: =30/60 -> 0.5 | M24: 1860.537531 | Q24: 118.1 | R24: 219729.4824 | S24: *
A25: 766.102 (a)(2) | B25: Request for Direct Loan Assistance/PLS - entity | G25: FSA-2001 | H25: 1163.832032 | I25: 0.333 | J25: 387.5560667 | K25: =60/60 -> 1 | M25: 387.5560667 | Q25: 118.1 | R25: 45770.37148 | S25: *
A26: 766.204 (a)(2) | B26: Request for Direct Loan Assistance/SA individuals & married app. | G26: FSA-2001 | H26: 93.37986952 | I26: 0.751 | J26: 70.12828201 | K26: =30/60 -> 0.5 | M26: 35.064141 | Q26: 118.1 | R26: 4141.075053 | S26: *
A27: 766.204 (a)(2) | B27: Request for Direct Loan Assistance/SA - entity | G27: FSA-2001 | H27: 20.49802014 | I27: 0.333 | J27: 6.825840706 | K27: =60/60 -> 1 | M27: 6.825840706 | Q27: 118.1 | R27: 806.1317874 | S27: *
A28: 764.51(b)(4) | B28: Three-Year Financial History - existing applicants | G28: FSA-2002 | H28: 5575.461478 | I28: 1 | J28: =SUM(H28*I28) -> 5575.461478 | K28: =30/60 -> 0.5 | M28: =SUM(J28*K28) -> 2787.730739 | Q28: 118.1 | R28: =SUM(M28*Q28) -> 329231.0002
A29: 1436.4 | B29: Three-Year Financial History - FSFL | G29: FSA-2002 | H29: 324.5519855 | I29: 1 | J29: 324.5519855 | K29: 0.5 | L29: =SUM(J29*K29) -> 162.2759928 | M29: 0 | Q29: 118.1 | R29: 0
A30: 766.102 (a)(3) | B30: Three-Year Financial History - PLS | G30: FSA-2002 | H30: 1428.028736 | I30: 1 | J30: 1428.028736 | K30: 0.5 | M30: 714.0143681 | Q30: 118.1 | R30: 84325.09688
A31: 764.51(b)(5) | B31: Three-Year Production History - existing applicants | G31: FSA-2003 | H31: 5575.461478 | I31: 1 | J31: =SUM(H31*I31) -> 5575.461478 | K31: 0.5 | M31: =SUM(J31*K31) -> 2787.730739 | Q31: 118.1 | R31: =SUM(M31*Q31) -> 329231.0002
A32: 1436.4 | B32: Three-Year Production History - FSFL | G32: FSA-2003 | H32: 284.6947241 | I32: 1 | J32: 284.6947241 | K32: 0.5 | L32: =SUM(J32*K32) -> 142.3473621 | M32: 0 | Q32: 118.1 | R32: 0
A33: 766.102 (a)(3) | B33: Three-Year Production History - PLS | G33: FSA-2003 | H33: 1414.36339 | I33: 1 | J33: 1414.36339 | K33: 0.5 | M33: =SUM(J33*K33) -> 707.1816948 | Q33: 118.1 | R33: 83518.15815
A34: 765.205 (a)(6) | B34: Authorization to Release Information - subordination | G34: FSA-2004 | H34: 9853.853792 | I34: 1 | J34: =SUM(H34*I34) -> 9853.853792 | K34: =10/60 -> 0.1666666667 | M34: 1642.308965 | Q34: 118.1 | R34: =SUM(M34*Q34) -> 193956.6888
A35: 765.404 (b)(1) | B35: Authorization to Release Information - transfer & assumption | G35: FSA-2004 | H35: 891.663876 | I35: 1 | J35: 891.663876 | K35: 0.1666666667 | M35: 148.610646 | Q35: 118.1 | R35: 17550.91729
A36: 1956.66 | B36: Authorization to Release Information - debt settlement | G36: FSA-2004 | H36: 3020.041634 | I36: 1 | J36: 3020.041634 | K36: 0.1666666667 | M36: 503.3402723 | Q36: 118.1 | R36: 59444.48616
A37: 1436.4 | B37: Authorization to Release Information - FSFL | G37: FSA-2004 | H37: 1708.168345 | I37: 1 | J37: 1708.168345 | K37: 0.1666666667 | L37: =SUM(J37*K37) -> 284.6947241 | M37: 0 | Q37: 118.1 | R37: 0
A38: 766.102 (a)(6) | B38: Authorization to Release Information - PLS | G38: FSA-2004 | H38: 4054.052872 | I38: 1 | J38: 4054.052872 | K38: 0.1666666667 | M38: 675.6754786 | Q38: 118.1 | R38: 79797.27403
A39: 766.152 (b)(5) | B39: Authorization to Release Information - Homestead protection | G39: FSA-2004 | H39: 25.05313572 | I39: 1 | J39: 25.05313572 | K39: 0.1666666667 | M39: 4.175522621 | Q39: 118.1 | R39: 493.1292215
A40: 766.204 (a)(2) | B40: Authorization to Release Information - SA amortization | G40: FSA-2004 | H40: 77.43696497 | I40: 1 | J40: 77.43696497 | K40: 0.1666666667 | M40: 12.90616083 | Q40: 118.1 | R40: 1524.217594
A41: 765.205 (a)(6) | B41: Creditor List - subordination | G41: FSA-2005 | H41: 9852.715013 | I41: 1 | J41: 9852.715013 | K41: =20/60 -> 0.3333333333 | M41: 3284.238338 | Q41: 118.1 | R41: 387868.5477
A42: 765.404 (b)(1) | B42: Creditor List - transfer & assumption - ineligible | G42: FSA-2005 | H42: 802.8391221 | I42: 1 | J42: 802.8391221 | K42: 0.3333333333 | M42: 267.6130407 | Q42: 118.1 | R42: 31605.10011
A43: 766.102 (a) | B43: Creditor List - PLS | G43: FSA-2005 | H43: 4038.109967 | I43: 1 | J43: 4038.109967 | K43: 0.3333333333 | M43: 1346.036656 | Q43: 118.1 | R43: 158966.929
A44: 766.151 (a)(3) | B44: Creditor List - homestead protection | G44: FSA-2005 | H44: 25.05313572 | I44: 1 | J44: 25.05313572 | K44: 0.3333333333 | M44: 8.351045241 | Q44: 118.1 | R44: 986.258443
A45: 766.204 (a)(2) | B45: Creditor List - SA amortization | G45: FSA-2005 | H45: 77.43696497 | I45: 1 | J45: 77.43696497 | K45: 0.3333333333 | M45: 25.81232166 | Q45: 118.1 | R45: 3048.435187
A46: 765.205 (a)(2) | B46: Property Owned and Leased - subordination | G46: FSA-2006 | H46: 9859.547686 | I46: 1 | J46: 9859.547686 | K46: =30/60 -> 0.5 | M46: 4929.773843 | Q46: 118.1 | R46: 582206.2909
A47: 766.102 (a)(7) | B47: Property Owned and Leased - PLS | G47: FSA-2006 | H47: 4038.109967 | I47: 1 | J47: 4038.109967 | K47: 0.5 | M47: 2019.054984 | Q47: 118.1 | R47: 238450.3936
A48: 766.204 (a)(2) | B48: Property Owned and Leased - SA amortization | G48: FSA-2006 | H48: 84.26963835 | I48: 1 | J48: 84.26963835 | K48: 0.5 | M48: 42.13481917 | Q48: 118.1 | R48: 4976.122144
A49: 764.402 | B49: Cosigner Application and Agreement | G49: FSA-2007 | H49: 1047.676585 | I49: 1 | J49: 1047.676585 | K49: =15/60 -> 0.25 | M49: 261.9191462 | Q49: 118.1 | R49: 30932.65117 | S49: *
A50: 764.51(b)(8) | B50: Verification of Income - loan making | G50: FSA-2014 | H50: 22307.5398 | I50: 1 | J50: 22307.5398 | K50: =15/60 -> 0.25 | M50: 5576.884951 | Q50: 118.1 | R50: 658630.1127 | S50: *
A51: 765.205 (a)(4) | B51: Verification of Income - subordination | G51: FSA-2014 | H51: 7657.1493 | I51: 1 | J51: 7657.1493 | K51: =15/60 -> 0.25 | M51: 1914.287325 | Q51: 118.1 | R51: 226077.3331 | S51: *
A52: 765.404 (b)(1) | B52: Verification of Income - transfer & assumption - Ineligible | G52: FSA-2014 | H52: 186.759739 | I52: 1 | J52: 186.759739 | K52: 0.25 | M52: 46.68993476 | Q52: 118.1 | R52: 5514.081295 | S52: *
A53: 766.102 (a)(6) | B53: Verification of Income - PLS | G53: FSA-2014 | H53: 3141.890976 | I53: 1 | J53: 3141.890976 | K53: 0.25 | M53: 785.4727439 | Q53: 118.1 | R53: 92764.33105 | S53: *
A54: 766.151 (b)(5) | B54: Verification of Income - Homestead protection | G54: FSA-2014 | H54: 21.63679903 | I54: 1 | J54: 21.63679903 | K54: 0.25 | M54: 5.409199759 | Q54: 118.1 | R54: 638.8264915 | S54: *
A55: 766.204 (a)(2) | B55: Verification of Income - SA amortization | G55: FSA-2014 | H55: 58.07772372 | I55: 1 | J55: 58.07772372 | K55: 0.25 | M55: 14.51943093 | Q55: 118.1 | R55: 1714.744793 | S55: *
A56: 1956.66 | B56: Verification of Debts and Assets - debt settlement | G56: FSA-2015 | H56: 4811.340838 | I56: 3 | J56: 14434.02251 | K56: =20/60 -> 0.3333333333 | M56: 4811.340838 | Q56: 118.1 | R56: 568219.353 | S56: *
A57: 1436.5 (a)(1) | B57: Verification of Debts and Assets - FSFL | G57: FSA-2015 | H57: 3188.58091 | I57: 3 | J57: 9565.742731 | K57: =20/60 -> 0.3333333333 | L57: =SUM(J57*K57) -> 3188.58091 | M57: 0 | Q57: 118.1 | R57: 0 | S57: *
A58: 764.51(b)(12) | B58: Verification of Debts and Assets - loan making - OL & EM | G58: FSA-2015 | H58: 39289.01071 | I58: 3 | J58: 117867.0321 | K58: 0.3333333333 | M58: 39289.01071 | Q58: 118.1 | R58: 4640032.165 | S58: *
A59: 764.51(b)(12) | B59: Verification of Debts and Assets - loan making - FO | G59: FSA-2015 | H59: 4933.19018 | I59: 3 | J59: 14799.57054 | K59: 0.3333333333 | M59: 4933.19018 | Q59: 118.1 | R59: 582609.7602 | S59: *
A60: 764.51 (d)(2) | B60: Verification of Debts and Assets - youth loans | G60: FSA-2015 | H60: 495.36882 | I60: 3 | J60: 1486.10646 | K60: 0.3333333333 | M60: 495.36882 | Q60: 118.1 | R60: 58503.05764 | S60: *
A61: 765.205 (a)(6) | B61: Verification of Debts and Assets - subordination | G61: FSA-2015 | H61: 15826.7491 | I61: 3 | J61: 47480.24731 | K61: 0.3333333333 | M61: 15826.7491 | Q61: 118.1 | R61: 1869139.069 | S61: *
A62: 765.404 (b)(1) | B62: Verification of Debts and Assets - transfer & assumption | G62: FSA-2015 | H62: 339.3561112 | I62: 3 | J62: 1018.068334 | K62: 0.3333333333 | M62: 339.3561112 | Q62: 118.1 | R62: 40077.95673 | S62: *
A63: 766.102 (a)(8) | B63: Verification of Debts and Assets - PLS | G63: FSA-2015 | H63: 6098.160991 | I63: 3 | J63: 18294.48297 | K63: 0.3333333333 | M63: 6098.160991 | Q63: 118.1 | R63: 720192.813 | S63: *
A64: 766.204 (a)(2) | B64: Verification of Debts and Assets - SA amortization | G64: FSA-2015 | H64: 121.8493419 | I64: 3 | J64: 365.5480258 | K64: 0.3333333333 | M64: 121.8493419 | Q64: 118.1 | R64: 14390.40728 | S64: *
A65: 766.353 (a) | B65: Verification of Debts and Assets - voluntary conveyance | G65: FSA-2015 | H65: 34.1633669 | I65: 3 | J65: 102.4901007 | K65: 0.3333333333 | M65: 34.1633669 | Q65: 118.1 | R65: 4034.693631
A66: 764.402(a)(1) | B66: Promissory Note - Individual | G66: FSA-2026 | H66: 26421.94796 | I66: 1 | J66: 26421.94796 | K66: =20/60 -> 0.3333333333 | M66: 8807.315986 | Q66: 118.1 | R66: 1040144.018
A67: 764.402(a)(1) | B67: Promissory Note - Entity Members | G67: FSA-2026 | H67: 7346.262662 | I67: 1 | J67: =SUM(H67*I67) -> 7346.262662 | K67: =20/60 -> 0.3333333333 | M67: =SUM(J67*K67) -> 2448.754221 | Q67: 118.1 | R67: 289197.8734
A68: 766.106, 766.204 | B68: Promissory Note - PLS - individual | G68: FSA-2026 | H68: 2977.906814 | I68: 1 | J68: 2977.906814 | K68: =20/60 -> 0.3333333333 | M68: 992.6356048 | Q68: 118.1 | R68: 117230.2649
A69: 766.106, 766.204 | B69: Promissory Note - PLS - entity members | G69: FSA-2026 | H69: 950.8803786 | I69: 1 | J69: 950.8803786 | K69: 0.3333333333 | M69: 316.9601262 | Q69: 118.1 | R69: 37432.99091
A70: 764.402 (a)(4) | B70: Promissory Note - cosigner | G70: FSA-2026 | H70: 252.808915 | I70: 1 | J70: 252.808915 | K70: 0.3333333333 | M70: 84.26963835 | Q70: 118.1 | R70: 9952.244289
A71: 764.254, 766.109 | B71: Supplemental Payment Agreement | G71: FSA-2027 | H71: 747.0389561 | I71: 1 | J71: 747.0389561 | K71: =15/60 -> 0.25 | M71: 186.759739 | Q71: 118.1 | R71: 22056.32518
A72: 764.305 | B72: Security Agreement - youth (lien on products financed) | G72: FSA-2028 | H72: 4542.589018 | I72: 1 | J72: 4542.589018 | K72: =20/60 -> 0.3333333333 | M72: 1514.196339 | Q72: 118.1 | R72: 178826.5877
A73: 764.103 (b)(1) | B73: Security Agreement - pledge of third party | G73: FSA-2028 | H73: 470.3156843 | I73: 1 | J73: 470.3156843 | K73: =20/60 -> 0.3333333333 | M73: 156.7718948 | Q73: 118.1 | R73: 18514.76077
A74: 764.103 (c) | B74: Security Agreement - 150 percent requirement | G74: FSA-2028 | H74: 1376.783686 | I74: 1 | J74: 1376.783686 | K74: 0.3333333333 | M74: 458.9278953 | Q74: 118.1 | R74: 54199.38444
A75: 764.103 (c) | B75: Security Agreement - lien on non-essential assets | G75: FSA-2028 | H75: 184.4821812 | I75: 1 | J75: 184.4821812 | K75: 0.3333333333 | M75: 61.49406041 | Q75: 118.1 | R75: 7262.448535
A76: 764.255 (b) | B76: Security Agreement - OL lien on property financed | G76: FSA-2028 | H76: 17451.78659 | I76: 1 | J76: 17451.78659 | K76: 0.3333333333 | M76: 5817.262197 | Q76: 118.1 | R76: 687018.6654
A77: 765.303 (a)(4) | B77: Security Agreement - add livestock when crops to be fed | G77: FSA-2028 | H77: 2706.877437 | I77: 1 | J77: 2706.877437 | K77: 0.3333333333 | M77: 902.292479 | Q77: 118.1 | R77: =SUM(M77*Q77) -> 106560.7418
A78: 765.303 (c)(2) | B78: Security Agreement - lien on new property in exchange | G78: FSA-2028 | H78: 5045.929291 | I78: 1 | J78: 5045.929291 | K78: 0.3333333333 | M78: 1681.97643 | Q78: 118.1 | R78: 198641.4164
A79: 766.56 | B79: Security Agreement - Delinquent DSA lien on all assets | G79: FSA-2028 | H79: 151.4575932 | I79: 1 | J79: 151.4575932 | K79: 0.3333333333 | M79: 50.48586441 | Q79: 118.1 | R79: 5962.380587
A80: 766.112 (a) | B80: Security Agreement - PLS lien on all assets | G80: FSA-2028 | H80: 390.6011615 | I80: 1 | J80: 390.6011615 | K80: 0.3333333333 | M80: 130.2003872 | Q80: 118.1 | R80: 15376.66573
A81: 766.204 (a)(5) | B81: Security Agreement - SA amortization lien on all assets | G81: FSA-2028 | H81: 76.29818607 | I81: 1 | J81: 76.29818607 | K81: 0.3333333333 | M81: 25.43272869 | Q81: 118.1 | R81: 3003.605258
A82: 764.103(b)(1) | B82: RE mortgage/deed of trust - pledge from 3rd party | G82: FSA-2029M, FSA-2029D | H82: 235.7272316 | I82: 1 | J82: 235.7272316 | K82: =30/60 -> 0.5 | M82: 117.8636158 | Q82: 118.1 | R82: 13919.69303
A83: 764.103 (c) | B83: RE mortgage/deed of trust - 150% requirement | G83: FSA-2029M, FSA-2029D | H83: 8782.26285 | I83: 1 | J83: 8782.26285 | K83: =30/60 -> 0.5 | M83: 4391.131425 | Q83: 118.1 | R83: 518592.6213
A84: 764.103 (e) | B84: RE mortgage/deed of trust - lien on nonessential assets | G84: FSA-2029M, FSA-2029D | H84: 677.5734435 | I84: 1 | J84: 677.5734435 | K84: 0.5 | M84: 338.7867217 | Q84: 118.1 | R84: 40010.71184
A85: 764.155 (b) | B85: RE mortgage/deed of trust - RE financed w/ FO funds | G85: FSA-2029M, FSA-2029D | H85: 3467.58174 | I85: 1 | J85: 3467.58174 | K85: 0.5 | M85: 1733.79087 | Q85: 118.1 | R85: 204760.7017
A86: 764.205 (b) | B86: RE mortgage/deed of trust - RE financed w/ BFDP funds | G86: FSA-2029M, FSA-2029D | H86: 177.6495079 | I86: 1 | J86: 177.6495079 | K86: 0.5 | M86: 88.82475393 | Q86: 118.1 | R86: 10490.20344
A87: 764.353 (c) | B87: RE mortgage/deed of trust - EM physical loss | G87: FSA-2029M, FSA-2029D | H87: 175.3719501 | I87: 1 | J87: 175.3719501 | K87: 0.5 | M87: 87.68597503 | Q87: 118.1 | R87: 10355.71365
A88: 765.205 (b) | B88: RE mortgage/deed of trust - subordination w/ purchase | G88: FSA-2029M, FSA-2029D | H88: 255.0864728 | I88: 1 | J88: 255.0864728 | K88: 0.5 | M88: 127.5432364 | Q88: 118.1 | R88: 15062.85622
A89: 765.352 (a) | B89: RE mortgage/deed of trust - proceeds used to develop | G89: FSA-2029M, FSA-2029D | H89: 93.37986952 | I89: 1 | J89: 93.37986952 | K89: 0.5 | M89: 46.68993476 | Q89: 118.1 | R89: 5514.081295
A90: 766.56 | B90: RE mortgage/deed of trust - delinquent DSA lien on assets | G90: FSA-2029M, FSA-2029D | H90: 61.49406041 | I90: 1 | J90: 61.49406041 | K90: 0.5 | M90: 30.74703021 | Q90: 118.1 | R90: 3631.224267
A91: 766.112 (a) | B91: RE mortgage/deed of trust - PLS lien on all assets | G91: FSA-2029M, FSA-2029D | H91: 831.3085945 | I91: 1 | J91: 831.3085945 | K91: 0.5 | M91: 415.6542972 | Q91: 118.1 | R91: 49088.7725
A92: 766.204 (a) | B92: RE mortgage/deed of trust - SA amortization lien on all assets | G92: FSA-2029M, FSA-2029D | H92: 81.99208055 | I92: 1 | J92: 81.99208055 | K92: 0.5 | M92: 40.99604028 | Q92: 118.1 | R92: 4841.632357
A93: 764.402, 764.303 | B93: Assignment of proceeds & consent to payment - applicant | G93: FSA-2041, FSA-2042 | H93: 8042.056567 | I93: 1 | J93: 8042.056567 | K93: =20/60 -> 0.3333333333 | M93: 2680.685522 | Q93: 118.1 | R93: 316588.9602
A94: 764.402, 764.304 | B94: Assignment of proceeds & consent to payment - purchaser | G94: FSA-2041, FSA-2043 | H94: 2665.881397 | I94: 3 | J94: 7997.644191 | K94: =20/60 -> 0.3333333333 | M94: 2665.881397 | Q94: 118.1 | R94: 314840.593 | S94: *
A95: 764.402 | B95: Assignment of dairy proceeds - applicant | G95: FSA-2043 | H95: 3809.215409 | I95: 1 | J95: 3809.215409 | K95: =20/60 -> 0.3333333333 | M95: 1269.73847 | Q95: 118.1 | R95: 149956.1133
A96: 764.402 | B96: Assignment of dairy proceeds - purchaser | G96: FSA-2044 | H96: 1258.350681 | I96: 3 | J96: 3775.052042 | K96: =20/60 -> 0.3333333333 | M96: 1258.350681 | Q96: 118.1 | R96: 148611.2154 | S96: *
A97: 764.402, 765.252 | B97: Assignment of income (includes mineral leases) | G97: FSA-2044 | H97: 2271.863899 | I97: 1 | J97: 2271.863899 | K97: =20/60 -> 0.3333333333 | M97: 757.2879662 | Q97: 118.1 | R97: 89435.70881
A98: 764.51 | B98: Request for youth loan - applicant | G98: FSA-2301 | H98: 5022.014934 | I98: 1 | J98: 5022.014934 | K98: =30/60 -> 0.5 | M98: 2511.007467 | Q98: 118.1 | R98: 296549.9818 | S98: *
A99: 764.302(e) | B99: Request for youth loan - advisor | G99: FSA-2301 | H99: 3020.041634 | I99: 1.62 | J99: 4892.467447 | K99: =10/60 -> 0.1666666667 | M99: 815.4112411 | Q99: 118.1 | R99: 96300.06757 | S99: *
A100: 764.302(f) | B100: Request for youth loan - parent/guardian | G100: FSA-2301 | H100: 4605.221858 | I100: 1 | J100: 4605.221858 | K100: =10/60 -> 0.1666666667 | M100: 767.5369763 | Q100: 118.1 | R100: 90646.1169 | S100: *
A101: 764.51(b)(14) | B101: Certification of disaster losses | G101: FSA-2309 | H101: 1549.878078 | I101: 1 | J101: 1549.878078 | K101: =90/60 -> 1.5 | M101: 2324.817117 | Q101: 118.1 | R101: 274560.9016
A102: 764.352(e) | B102: Lender's verification of loan application - individual | G102: FSA-2310 | H102: 1402.975601 | I102: 1 | J102: 1402.975601 | K102: =5/60 -> 0.08333333333 | M102: 116.9146334 | Q102: 118.1 | R102: 13807.6182
A103: 764.352(e) | B103: Lender's verification of loan application - entity members | G103: FSA-2310 | H103: 431.5972018 | I103: 1 | J103: 431.5972018 | K103: =5/60 -> 0.08333333333 | M103: 35.96643348 | Q103: 118.1 | R103: 4247.635794
A104: 764.352(e) | B104: Lender's verification of loan application - lender | G104: FSA-2310 | H104: 998.7090923 | I104: 2 | J104: 1997.418185 | K104: =30/60 -> 0.5 | M104: 998.7090923 | Q104: 118.1 | R104: 117947.5438 | S104: *
A105: 764.401(a) | B105: Notification of loan approval and conditions | G105: FSA-2313 | H105: 30006.82392 | I105: 1 | J105: 30006.82392 | K105: =20/60 -> 0.3333333333 | M105: 10002.27464 | Q105: 118.1 | R105: 1181268.635
A106: 764.51(c) | B106: Request for Streamlined loan making assistance/LM - Individual | G106: FSA-2314 | H106: 5693.894483 | I106: 0.756 | J106: 4304.584229 | K106: =30/60 -> 0.5 | M106: 2152.292114 | Q106: 118.1 | R106: 254185.6987 | S106: *
A107: 764.51(c) | B107: Request for Streamlined loan making assistance - LM-Entity | G107: FSA-2314 | H107: 15.94290455 | I107: 0.333 | J107: 5.308987216 | K107: =60/60 -> 1 | M107: 5.308987216 | Q107: 118.1 | R107: 626.9913902 | S107: *
A108: 764.255 (b) | B108: Consent and subordination - applicant | G108: FSA-2317 | H108: 218.6455481 | I108: 1 | J108: 218.6455481 | K108: =15/60 -> 0.25 | M108: 54.66138703 | Q108: 118.1 | R108: 6455.509809
A109: 764.255 (b) | B109: Consent and subordination - lender | G109: FSA-2317 | H109: 220.9231059 | I109: 1 | J109: 220.9231059 | K109: =15/60 -> 0.25 | M109: 55.23077648 | Q109: 118.1 | R109: 6522.754703 | S109: *
A110: 764.402(c) | B110: Agreement for disposition of jointly-owned property | G110: FSA-2318 | H110: 134.3759098 | I110: 1 | J110: 134.3759098 | K110: =10/60 -> 0.1666666667 | M110: 22.39598497 | Q110: 118.1 | R110: 2644.965824
A111: 764.104(a)(2) | B111: Agreement with prior lienholder | G111: FSA-2319 | H111: 1748.025606 | I111: 1 | J111: 1748.025606 | K111: =10/60 -> 0.1666666667 | M111: 291.337601 | Q111: 118.1 | R111: 34406.97068 | S111: *
A112: 1436.8 | B112: Agreement with prior lienholder - FSFL | G112: FSA-2320 | H112: 911.0231172 | I112: 1 | J112: 911.0231172 | K112: =10/60 -> 0.1666666667 | L112: =SUM(J112*K112) -> 151.8371862 | M112: 0 | Q112: 118.1 | R112: 0 | S112: *
A113: 764.108 | B113: Property Insurance mortgage clause | G113: FSA-2320 | H113: 13.66534676 | I113: 1 | J113: 13.66534676 | K113: =10/60 -> 0.1666666667 | M113: 2.277557793 | Q113: 118.1 | R113: 268.9795754 | S113: *
A114: 764.402, 765.205 | B114: Selection of attorney/title agent | G114: FSA-2340 | H114: 5503.718407 | I114: 1 | J114: 5503.718407 | K114: =10/60 -> 0.1666666667 | M114: 917.2864012 | Q114: 118.1 | R114: 108331.524
A115: 764.402, 765.205 | B115: Certification of attorney/title company | G115: FSA-2341, FSA-2342 | H115: 3245.519855 | I115: 1 | J115: 3245.519855 | K115: =20/60 -> 0.3333333333 | M115: 1081.839952 | Q115: 118.1 | R115: 127765.2983 | S115: *
A116: 764.402, 765.205 | B116: Preliminary title opinion | G116: FSA-2344 | H116: 3103.172493 | I116: 1.49 | J116: 4623.727015 | K116: =90/60 -> 1.5 | M116: 6935.590522 | Q116: 118.1 | R116: 819093.2407
A117: 764.402 | B117: Loan closing instructions | G117: FSA-2350 | H117: 2795.702191 | I117: 1.49 | J117: 4165.596265 | K117: =30/60 -> 0.5 | M117: 2082.798132 | Q117: 118.1 | R117: 245978.4594
A118: 764.402, 765.205 | B118: Certification of improvement of property | G118: FSA-2351 | H118: 559.1404382 | I118: 1 | J118: 559.1404382 | K118: =10/60 -> 0.1666666667 | M118: 93.19007303 | Q118: 118.1 | R118: 11005.74763 | S118: *
A119: 764.402, 765.206 | B119: Final title opinion | G119: FSA-2352 | H119: 2784.314402 | I119: 1.49 | J119: 4148.628459 | K119: =30/60 -> 0.5 | M119: 2074.31423 | Q119: 118.1 | R119: 244976.5105
A120: 764.402 | B120: Report of lien search | G120: FSA-2360 | H120: 691.2387902 | I120: 1 | J120: 691.2387902 | K120: =30/60 -> 0.5 | M120: 345.6193951 | Q120: 118.1 | R120: 40817.65056 | S120: *
A121: 1436.8 | B121: Report of lien search - FSFL | G121: FSA-2360 | H121: 1708.168345 | I121: 1 | J121: 1708.168345 | K121: =30/60 -> 0.5 | L121: =SUM(J121*K121) -> 854.0841724 | M121: 0 | Q121: 118.1 | R121: 0 | S121: *
A122: 764.255 | B122: Subordination to the Government | G122: FSA-2361 | H122: 620.6344986 | I122: 1 | J122: 620.6344986 | K122: =30/60 -> 0.5 | M122: 310.3172493 | Q122: 118.1 | R122: 36648.46714 | S122: *
A123: 764.453 | B123: Requiest for Waiver of Borrower Training Requirements | G123: FSA-2370 | H123: 10616.83565 | I123: 1 | J123: 10616.83565 | K123: =30/60 -> 0.5 | M123: 5308.417826 | Q123: 118.1 | R123: 626924.1453
A124: 764.452 | B124: Agreement to Complete Training | G124: FSA-2371 | H124: 9458.697515 | I124: 1 | J124: 9458.697515 | K124: =15/60 -> 0.25 | M124: 2364.674379 | Q124: 118.1 | R124: 279268.0441
A125: 764.458 | B125: Agreement To Conduct Financial Management Training for Farm Service Agency Borrowers | G125: FSA-2375 | H125: 165.12294 | I125: 1 | J125: 165.12294 | K125: =10/60 -> 0.1666666667 | M125: 27.52049 | Q125: 118.1 | R125: 3250.169869 | S125: *
A126: 764.454 | B126: Borrower training course evaluation - borrower | G126: FSA-2376 | H126: 4523.229777 | I126: 1 | J126: 4523.229777 | K126: =15/60 -> 0.25 | M126: 1130.807444 | Q126: 118.1 | R126: 133548.3592
A127: 764.454 | B127: Borrower training course evaluation - vendor | G127: FSA-2376 | H127: 405.4052872 | I127: 10.39 | J127: 4212.160934 | K127: =30/60 -> 0.5 | M127: 2106.080467 | Q127: 118.1 | R127: 248728.1031
A128: 764.51 (b)(6) | B128: Documentation other credit is not available - lender | G128: Non-form | H128: 6771.179319 | I128: 3.14 | J128: 21261.50306 | K128: =60/60 -> 1 | M128: 21261.50306 | Q128: 118.1 | R128: 2510983.512 | S128: *
A129: 764.51 (b)(10) | B129: Copy of legal description of RE to purchase, leases, agreements | G129: Non-form | H129: 15441.84184 | I129: 1 | J129: 15441.84184 | K129: =15/60 -> 0.25 | M129: 3860.460459 | Q129: 118.1 | R129: 455920.3802
A130: 764.51 (b)(13) | B130: Information needed to evaluate application | G130: Non-form | H130: 1429.167515 | I130: 1 | J130: 1429.167515 | K130: =15/60 -> 0.25 | M130: 357.2918788 | Q130: 118.1 | R130: 42196.17089
A131: 764.53 (e) | B131: Request to keep application active (funds not available) | G131: Non-form | H131: 31.8858091 | I131: 1 | J131: 31.8858091 | K131: =10/60 -> 0.1666666667 | M131: 5.314301517 | Q131: 118.1 | R131: 627.6190092
A132: 764.101 | B132: Citizenship status documentation | G132: Non-form | H132: 25.05313572 | I132: 1 | J132: 25.05313572 | K132: =15/60 -> 0.25 | M132: 6.263283931 | Q132: 118.1 | R132: 739.6938323
A133: 764.104 (b)(2) | B133: Contract for sale - agreement to use insurance proceeds | G133: Non-form | H133: 21.63679903 | I133: 1 | J133: 21.63679903 | K133: =15/60 -> 0.25 | M133: 5.409199759 | Q133: 118.1 | R133: 638.8264915
A134: 764.104 (b)(5) | B134: Purchase contract holder agreement | G134: Non-form | H134: 21.63679903 | I134: 1 | J134: 21.63679903 | K134: =15/60 -> 0.25 | M134: 5.409199759 | Q134: 118.1 | R134: 638.8264915
A135: 764.104 (c) | B135: Request to BIA to provide title status report | G135: Non-form | H135: 13.66534676 | I135: 1 | J135: 13.66534676 | K135: =30/60 -> 0.5 | M135: =SUM(J135*K135) -> 6.832673379 | Q135: 118.1 | R135: 806.9387261
A136: 764.108 | B136: Evidence of hazard insurance | G136: Non-form | H136: 14182.35238 | I136: 1 | J136: 14182.35238 | K136: =15/60 -> 0.25 | M136: 3545.588094 | Q136: 118.1 | R136: 418733.954
A137: 764.108 | B137: Evidence of flood insurance | G137: Non-form | H137: 13095.95731 | I137: 1 | J137: 13095.95731 | K137: 0.25 | M137: 3273.989328 | Q137: 118.1 | R137: 386658.1396
A138: 764.108 | B138: Evidence of crop insurance | G138: Non-form | H138: 17252.50028 | I138: 1 | J138: 17252.50028 | K138: 0.25 | M138: 4313.125071 | Q138: 118.1 | R138: =SUM(M138*Q138) -> 509380.0709
A139: 764.108 (d) | B139: Waiver of eligibility for emergency crop loss assistance | G139: Non-form | H139: 620.6344986 | I139: 1 | J139: 620.6344986 | K139: 0.25 | M139: 155.1586247 | Q139: 118.1 | R139: 18324.23357
A140: 764.151 (e) | B140: Evidence to refinance bridge FO loan | G140: Non-form | H140: 118.4330052 | I140: 1 | J140: 118.4330052 | K140: 0.25 | M140: 29.60825131 | Q140: 118.1 | R140: 3496.73448
A141: 764.255 | B141: Obtaining branded livestock and feeder cattle agreement | G141: Non-form | H141: 395.1562771 | I141: 1 | J141: 395.1562771 | K141: 0.25 | M141: 98.78906928 | Q141: 118.1 | R141: 11666.98908
A142: 764.255 | B142: Lien on motor vehicles | G142: Non-form | H142: 78.57574386 | I142: 1 | J142: 78.57574386 | K142: 0.25 | M142: 19.64393597 | Q142: 118.1 | R142: 2319.948838
A143: 764.352 (c) | B143: EM RE purposes - lease exceeds loan term | G143: Non-form | H143: 13.66534676 | I143: 1 | J143: 13.66534676 | K143: 0.25 | M143: 3.41633669 | Q143: 118.1 | R143: 403.4693631
A144: 764.352 (c) | B144: EM RE purposes - notification of lease's expiration | G144: Non-form | H144: 11.38778897 | I144: 1 | J144: 11.38778897 | K144: 0.25 | M144: 2.846947241 | Q144: 118.1 | R144: 336.2244692
A145: 764.352 (e) | B145: Written declination of credit - EM applicants | G145: Non-form | H145: 332.5234378 | I145: 2 | J145: 665.0468756 | K145: =15/60 -> 0.25 | M145: 166.2617189 | Q145: 118.1 | R145: 19635.509
A146: 764.352 (e) | B146: Written declination of credit - EM - lender | G146: Non-form | H146: 216.3679903 | I146: 3.08 | J146: 666.4134103 | K146: =30/60 -> 0.5 | M146: 333.2067051 | Q146: 118.1 | R146: 39351.71188 | S146: *
A147: 764.353, 764.356 | B147: Documentation of losses of livestock/livestock products | G147: Non-form | H147: 195.8699702 | I147: 1 | J147: 195.8699702 | K147: =15/60 -> 0.25 | M147: 48.96749255 | Q147: 118.1 | R147: 5783.06087
A148: 764.355 (c) | B148: EM - repayment ability when security not available | G148: Non-form | H148: 13.66534676 | I148: 1 | J148: 13.66534676 | K148: =15/60 -> 0.25 | M148: 3.41633669 | Q148: 118.1 | R148: 403.4693631
A149: 764.355 (3) | B149: Certificate of title for EM | G149: Non-form | H149: 70.60429159 | I149: 1 | J149: 70.60429159 | K149: =15/60 -> 0.25 | M149: 17.6510729 | Q149: 118.1 | R149: 2084.591709
A150: 764.454 (a)(2) | B150: Circumstances beyond borrower's control for not completing BT | G150: Non-form | H150: 444.1237697 | I150: 1 | J150: 444.1237697 | K150: =15/60 -> 0.25 | M150: 111.0309424 | Q150: 118.1 | R150: 13112.7543
A151: 764.456 | B151: Vendor application for approval to provide borrower training | G151: Non-form | H151: 46.68993476 | I151: 1 | J151: 46.68993476 | K151: =990/60 -> 16.5 | M151: 770.3839235 | Q151: 118.1 | R151: 90982.34137 | S151: *
A152: 764.458 | B152: Vendor request to change curriculum, instructor or cost | G152: Non-form | H152: 18.22046234 | I152: 1 | J152: 18.22046234 | K152: =30/60 -> 0.5 | M152: 9.110231172 | Q152: 118.1 | R152: 1075.918301
A153: 764.458 (a)(4) | B153: Vendor revocation of agreement to provide borrower training | G153: Non-form | H153: 12.52656786 | I153: 1 | J153: 12.52656786 | K153: =15/60 -> 0.25 | M153: 3.131641966 | Q153: 118.1 | R153: 369.8469161
A154: 764.458 (b) | B154: Renewal of vendor approval to provide borrower training | G154: Non-form | H154: 151.4575932 | I154: 1 | J154: 151.4575932 | K154: =390/60 -> 6.5 | M154: 984.4743561 | Q154: 118.1 | R154: 116266.4215 | S154: *
A155: 764.459 | B155: Vendor evalutation of borrower progress | G155: Non-form | H155: 450.956443 | I155: 6.72 | J155: 3030.427297 | K155: =30/60 -> 0.5 | M155: 1515.213649 | Q155: 118.1 | R155: 178946.7319
A156: 765.205, 766.106 | B156: RE mortgage/modification agreement | G156: Non-form | H156: 1108.031866 | I156: 1 | J156: 1108.031866 | K156: =30/60 -> 0.5 | M156: 554.0159332 | Q156: 118.1 | R156: 65429.28171
A157: 764.51 (b)(15) | B157: Conservation Plan | G157: Non-form | H157: 1835.711581 | I157: 1 | J157: 1835.711581 | K157: =15/60 -> 0.25 | M157: 458.9278953 | Q157: 118.1 | R157: 54199.38444
A158: 764.51 (b)(16) | B158: Transisition to Organic/sustainable | G158: Non-form | H158: 10.24901007 | I158: 1 | J158: 10.24901007 | K158: =15/60 -> 0.25 | M158: 2.562252517 | Q158: 118.1 | R158: 302.6020223
A159: 764.51 (b)(2) | B159: Entity information - loan application | G159: Non-form | H159: 765.2594185 | I159: 1 | J159: 765.2594185 | K159: =15/60 -> 0.25 | M159: 191.3148546 | Q159: 118.1 | R159: 22594.28433
A160: 764.51 (b)(6) | B160: Documention other credit is not available - applicant | G160: Non-form | H160: 21762.06471 | I160: 1 | J160: 21762.06471 | K160: =60/60 -> 1 | M160: 21762.06471 | Q160: 118.1 | R160: 2570099.843
B161: SUBTOTAL | J161: =SUM(J20:J160) -> 696202.8288 | L161: =SUM(L20:L40) -> 589.318079 | M161: =SUM(M20:M160) -> 336907.9689 | P161: =SUM(P20:P160) -> 0 | R161: =SUM(R20:R160) -> 39788831.12 | S161: =SUMIF(S20:S160,"*",H20:H160) -> 202012.5436
B162: TOTAL OF ALL PAGES | J162: =SUM(J161) -> 696202.8288 | L162: =SUM(L161) -> 589.318079 | M162: =SUM(M161) -> 336907.9689 | P162: =SUM(P161) -> 0 | R162: =SUM(R161) -> 39788831.12
A163: TOTAL - COLUMNS "F" AND "I" = OMB 83-I, 13b; COLUMNS "H" AND "K" = OMB 83-I, 13c | J163: =SUM(J162+N162) -> 696202.8288 | M163: =SUM(M162+P162) -> 336907.9689
A166: Est Respondents | B166: =S161 -> 202012.5436
A167: Resp/Respondent | B167: =J161/B166 -> 3.446334651
A168: Est Total Resp | B168: =J162 -> 696202.8288
A169: Avg Time/Resp | B169: =B170/B168 -> 0.4839221487
A170: Est Total Burden | B170: =M163 -> 336907.9689
